bitfinex-derivatives/quotes_SOLF0:USTF0_20260222
["timestamp","ask_amount","ask_price","bid_price","bid_amount"]
[1771744238542,7.84672789,85.267,85.23,11.26818552]
[1771744238745,11.82969651,85.266,85.23,11.26818552]
[1771744238942,11.82969651,85.265,85.23,11.26818552]
[1771744239144,11.82969651,85.264,85.23,11.26818552]
[1771744239345,2.93234731,85.263,85.23,11.26818552]
[1771744239544,2.93234731,85.262,85.23,11.26818552]
[1771744239743,2.93234731,85.261,85.23,11.26818552]
[1771744239943,2.93234731,85.26,85.23,11.26818552]
[1771744240143,2.93234731,85.259,85.23,11.26818552]
[1771744240444,7.84672789,85.267,85.23,11.26818552]
[1771744240644,11.70826662,85.266,85.23,11.26818552]
[1771744240841,11.70826662,85.265,85.23,11.26818552]
[1771744241042,11.70826662,85.264,85.23,11.26818552]
[1771744241339,11.70826662,85.263,85.23,11.26818552]
[1771744241543,2.93234731,85.262,85.23,11.26818552]
[1771744241744,2.93234731,85.261,85.23,11.26818552]
[1771744241944,2.93234731,85.26,85.23,11.26818552]
[1771744242145,7.84672789,85.267,85.201,174.96786671]
[1771744242146,4.731e-05,85.259,85.232,11.36210945]
[1771744242345,7.84672789,85.267,85.232,11.36210945]
[1771744242647,8.77587476,85.266,85.232,11.36210945]
[1771744242940,8.77587476,85.265,85.232,11.36210945]
[1771744243245,8.77587476,85.264,85.232,11.36210945]
[1771744243446,7.84672789,85.267,85.232,11.36210945]
[1771744243747,8.77591348,85.266,85.232,11.36210945]
[1771744243946,8.77591348,85.265,85.232,11.36210945]
[1771744244146,8.77591348,85.264,85.232,11.36210945]
[1771744244341,7.84672789,85.267,85.232,11.36210945]
[1771744244541,8.77595379,85.266,85.232,11.36210945]
[1771744244742,8.77595379,85.265,85.232,11.36210945]
[1771744245041,8.77595379,85.264,85.232,11.36210945]
[1771744245242,7.84672789,85.267,85.232,11.36210945]
[1771744245445,8.77604445,85.266,85.232,11.36210945]
[1771744245643,8.77604445,85.265,85.232,11.36210945]
[1771744245843,8.77604445,85.264,85.232,11.36210945]
[1771744246043,8.77604445,85.263,85.232,11.36210945]
[1771744246240,14.65025859,85.294,85.212,290.57920927]
[1771744246241,10.98769394,85.289,85.247,11.36210945]
[1771744246445,10.98769394,85.289,85.212,290.57920927]
[1771744246446,8.77373905,85.288,85.251,11.36210945]
[1771744246745,7.44996412,85.298,85.251,11.36210945]
[1771744246947,7.45064718,85.296,85.251,11.36210945]
[1771744247242,16.2183439,85.295,85.251,11.36210945]
[1771744247442,8.7733999,85.294,85.251,11.36210945]
[1771744247641,8.7733999,85.293,85.256,10.5595]
[1771744247843,8.7733999,85.292,85.257,11.36210945]
[1771744248142,7.444944,85.295,85.257,11.36210945]
[1771744248143,8.7733999,85.291,85.257,11.36210945]
[1771744248446,7.444944,85.295,85.257,11.36210945]
[1771744248649,2.46609534,85.31,85.257,11.36210945]
[1771744248847,8.76660855,85.309,85.261,11.36210945]
[1771744249048,8.76660855,85.308,85.261,11.36210945]
[1771744249248,7.24618535,85.306,85.261,11.36210945]
[1771744249452,16.0127939,85.305,85.261,11.36210945]
[1771744249649,7.24618535,85.299,85.261,11.36210945]
[1771744249849,7.24618535,85.297,85.261,11.36210945]
[1771744255358,7.24618535,85.297,85.262,10.5587]
[1771744255659,7.24618535,85.297,85.263,11.36210945]
[1771744256254,7.24618535,85.297,85.265,10.5583]
[1771744256557,2.46609534,85.3,85.266,11.36210945]
[1771744261352,7.05061216,85.299,85.266,11.36210945]
[1771744261558,2.46609534,85.29,85.246,11.36210945]
[1771744262358,2.46609534,85.29,85.24,2.46609534]
[1771744262359,7.04876505,85.289,85.249,11.36210945]
[1771744266961,9.73995241,85.3,85.251,11.36210945]
[1771744267260,2.93128703,85.299,85.251,11.36210945]
[1771744267456,2.93128703,85.298,85.251,11.36210945]
[1771744267662,9.73995241,85.3,85.251,11.36210945]
[1771744267853,2.93132452,85.299,85.251,11.36210945]
[1771744268058,2.93132452,85.298,85.251,11.36210945]
[1771744268258,9.73995241,85.3,85.251,11.36210945]
[1771744268459,2.93132452,85.299,85.251,11.36210945]
[1771744268762,9.57880681,85.31,85.26,11.06508634]
[1771744269062,11.67464886,85.309,85.26,11.06508634]
[1771744269262,18.78517208,85.308,85.26,11.06508634]
[1771744269564,2.93106612,85.307,85.26,11.06508634]
[1771744269756,2.93106612,85.306,85.26,11.06508634]
[1771744270061,7.11827888,85.304,85.26,11.06508634]
[1771744270359,10.049345,85.303,85.262,10.5588]
[1771744270560,7.11827888,85.303,85.263,11.06508634]
[1771744271361,2.46609534,85.3,85.263,11.06508634]
[1771744272854,2.46609534,85.3,85.266,10.65787779]
[1771744275364,9.58622791,85.3,85.266,10.65787779]
[1771744284471,2.93110243,85.299,85.266,10.65787779]
[1771744284671,9.58622791,85.3,85.266,10.65787779]
[1771744284872,2.9311026,85.299,85.266,10.65787779]
[1771744285076,9.58622791,85.3,85.266,10.65787779]
[1771744285267,2.9311026,85.299,85.266,10.65787779]
[1771744285574,2.9311026,85.298,85.266,10.65787779]
[1771744285768,9.58622791,85.3,85.266,10.65787779]
[1771744285968,2.9311026,85.299,85.266,10.65787779]
[1771744286270,2.9311026,85.298,85.266,10.65787779]
[1771744286469,2.9311026,85.297,85.266,10.65787779]
[1771744286663,9.58622791,85.3,85.266,10.65787779]
[1771744286863,2.93110259,85.299,85.266,10.65787779]
[1771744287170,2.93110259,85.298,85.266,10.65787779]
[1771744287367,2.93110259,85.297,85.266,10.65787779]
[1771744287571,2.93110259,85.296,85.266,10.65787779]
[1771744287773,9.58622791,85.3,85.266,10.65787779]
[1771744288071,2.93110259,85.299,85.266,10.65787779]
[1771744288372,2.93110259,85.298,85.266,10.65787779]
[1771744288567,2.93110259,85.297,85.266,10.65787779]
[1771744288768,2.93110259,85.296,85.266,10.65787779]
[1771744288970,2.93110259,85.295,85.266,10.65787779]
[1771744289169,9.58622791,85.3,85.266,10.65787779]
[1771744289368,11.67087689,85.299,85.266,10.65787779]
[1771744289568,11.67087689,85.298,85.266,10.65787779]
[1771744289769,11.67087689,85.297,85.266,10.65787779]
[1771744289969,2.93110215,85.296,85.266,10.65787779]
[1771744290271,11.68064899,85.295,85.266,10.65787779]
[1771744290574,9.58622791,85.3,85.266,10.65787779]
[1771744290575,2.93110215,85.294,85.266,10.65787779]
[1771744290776,2.93110215,85.293,85.266,10.65787779]
[1771744290970,2.93110215,85.292,85.266,10.65787779]
[1771744291166,2.93110215,85.291,85.266,10.65787779]
[1771744291376,9.58622791,85.3,85.266,10.65787779]
[1771744291377,2.93106458,85.29,85.266,10.65787779]
[1771744291570,2.93106458,85.289,85.266,10.65787779]
[1771744291874,9.58622791,85.3,85.266,10.65787779]
[1771744292075,11.68679906,85.299,85.266,10.65787779]
[1771744292271,11.68679906,85.298,85.266,10.65787779]
[1771744292473,11.68679906,85.297,85.266,10.65787779]
[1771744292770,11.68679906,85.296,85.266,10.65787779]
[1771744292971,11.68679906,85.295,85.266,10.65787779]
[1771744293166,11.68679906,85.294,85.266,10.65787779]
[1771744293372,11.68679906,85.293,85.266,10.65787779]
[1771744293569,11.68679906,85.292,85.266,10.65787779]
[1771744293768,9.58622791,85.3,85.266,10.65787779]
[1771744293769,2.93106458,85.291,85.266,10.65787779]
[1771744293970,2.93106458,85.29,85.266,10.65787779]
[1771744294172,2.93106458,85.289,85.266,10.65787779]
[1771744294375,2.93106458,85.288,85.266,10.65787779]
[1771744294672,9.58622791,85.3,85.266,10.65787779]
[1771744294868,11.6878411,85.299,85.266,10.65787779]
[1771744295072,11.6878411,85.298,85.266,10.65787779]
[1771744295273,11.6878411,85.297,85.266,10.65787779]
[1771744295477,11.6878411,85.296,85.266,10.65787779]
[1771744295673,11.6878411,85.295,85.266,10.65787779]
[1771744295873,11.6878411,85.294,85.266,10.65787779]
[1771744296078,2.46430099,85.29,85.266,10.65787779]
[1771744296273,2.93110215,85.289,85.266,10.65787779]
[1771744296576,2.93110215,85.288,85.266,10.65787779]
[1771744296769,2.46430099,85.29,85.266,10.65787779]
[1771744296975,2.93110316,85.289,85.266,10.65787779]
[1771744297273,2.93110316,85.288,85.266,10.65787779]
[1771744297469,2.93110316,85.287,85.266,10.65787779]
[1771744297669,2.46430099,85.29,85.266,10.65787779]
[1771744297865,2.93114073,85.289,85.266,10.65787779]
[1771744298070,2.93114073,85.288,85.266,10.65787779]
[1771744298365,2.93114073,85.287,85.266,10.65787779]
[1771744298576,9.58443356,85.3,85.266,10.65787779]
[1771744298769,11.68798285,85.299,85.266,10.65787779]
[1771744298978,11.68798285,85.298,85.266,10.65787779]
[1771744299170,11.68798285,85.297,85.266,10.65787779]
[1771744299372,11.68798285,85.296,85.266,10.65787779]
[1771744299575,11.68798285,85.295,85.266,10.65787779]
[1771744299877,11.68798285,85.294,85.266,10.65787779]
[1771744300071,11.68798285,85.293,85.266,10.65787779]
[1771744300269,11.68798285,85.292,85.266,10.65787779]
[1771744300469,11.68798285,85.291,85.266,10.65787779]
[1771744300674,2.93114073,85.29,85.266,10.65787779]
[1771744300974,2.93114073,85.289,85.266,10.65787779]
[1771744301175,2.93114073,85.288,85.266,10.65787779]
[1771744301375,2.93114073,85.287,85.266,10.65787779]
[1771744301579,9.58443356,85.3,85.266,10.65787779]
[1771744301780,11.6976438,85.299,85.266,10.65787779]
[1771744302077,9.58443356,85.3,85.266,10.65787779]
[1771744302078,11.6976438,85.298,85.266,10.65787779]
[1771744302278,11.6976438,85.297,85.266,10.65787779]
[1771744302578,11.6976438,85.296,85.266,10.65787779]
[1771744302776,11.6976438,85.295,85.266,10.65787779]
[1771744302976,11.6976438,85.294,85.266,10.65787779]
[1771744303177,9.58443356,85.3,85.266,10.65787779]
[1771744303178,11.6976438,85.293,85.266,10.65787779]
[1771744303379,11.6976438,85.292,85.266,10.65787779]
[1771744303581,9.58443356,85.3,85.266,10.65787779]
[1771744303582,11.6976438,85.291,85.266,10.65787779]
[1771744303778,2.93114073,85.29,85.266,10.65787779]
[1771744304078,2.93114073,85.289,85.266,10.65787779]
[1771744304278,2.93114073,85.288,85.266,10.65787779]
[1771744304578,9.58443356,85.3,85.266,10.65787779]
[1771744304579,2.93114073,85.287,85.266,10.65787779]
[1771744304877,9.58443356,85.3,85.266,10.65787779]
[1771744305076,11.6977681,85.299,85.266,10.65787779]
[1771744305277,11.6977681,85.298,85.266,10.65787779]
[1771744305472,9.58443356,85.3,85.266,10.65787779]
[1771744305473,11.6977681,85.297,85.266,10.65787779]
[1771744305674,2.46430099,85.29,85.266,10.65787779]
[1771744305974,2.93114059,85.289,85.266,10.65787779]
[1771744306173,2.93114059,85.288,85.266,10.65787779]
[1771744306374,2.46430099,85.29,85.266,10.65787779]
[1771744306577,2.93114059,85.289,85.266,10.65787779]
[1771744306776,2.93114059,85.288,85.266,10.65787779]
[1771744306979,2.46430099,85.29,85.266,10.65787779]
[1771744307182,2.93114059,85.289,85.266,10.65787779]
[1771744307381,2.93114059,85.288,85.266,10.65787779]
[1771744307579,2.46430099,85.29,85.244,10.561]
[1771744307780,6.33707895,85.288,85.245,10.84933696]
[1771744307980,11.69871623,85.287,85.245,10.84933696]
[1771744308183,2.46430099,85.28,85.245,10.84933696]
[1771744309983,6.33707895,85.288,85.245,10.84933696]
[1771744310183,11.69838029,85.287,85.245,10.84933696]
[1771744310381,11.69838029,85.286,85.245,10.84933696]
[1771744310582,2.93136408,85.285,85.245,10.84933696]
[1771744310781,2.93136408,85.284,85.245,10.84933696]
[1771744310985,2.46430099,85.28,85.245,10.84933696]
[1771744311379,2.93151676,85.279,85.245,10.84933696]
[1771744311575,2.93151676,85.278,85.245,10.84933696]
[1771744311779,2.46430099,85.28,85.245,10.84933696]
[1771744311983,2.93151654,85.279,85.245,10.84933696]
[1771744312186,2.93151654,85.278,85.245,10.84933696]
[1771744312382,2.46430099,85.28,85.245,10.84933696]
[1771744312581,2.93151632,85.279,85.245,10.84933696]
[1771744312782,2.46430099,85.28,85.245,10.84933696]
[1771744312980,2.93151658,85.279,85.245,10.84933696]
[1771744313181,2.46430099,85.28,85.245,10.84933696]
[1771744313376,2.93151658,85.279,85.245,10.84933696]
[1771744313583,2.46430099,85.28,85.245,10.84933696]
[1771744313784,2.93151658,85.279,85.245,10.84933696]
[1771744313989,2.46430099,85.28,85.245,10.84933696]
[1771744314190,2.93151658,85.279,85.245,10.84933696]
[1771744314385,2.46430099,85.28,85.245,10.84933696]
[1771744314590,2.93151658,85.279,85.245,10.84933696]
[1771744314791,2.46430099,85.28,85.245,10.84933696]
[1771744314993,2.93151658,85.279,85.246,10.5608]
[1771744315290,2.46430099,85.28,85.247,10.84933696]
[1771744316292,2.46430099,85.28,85.25,10.84933696]
[1771744318288,2.46430099,85.28,85.249,10.5604]
[1771744318289,2.46430099,85.28,85.253,10.84933696]
[1771744319791,2.46430099,85.28,85.255,10.84933696]
[1771744320994,6.33707895,85.288,85.255,10.84933696]
[1771744321198,11.69161551,85.287,85.255,10.84933696]
[1771744321495,2.93140582,85.286,85.255,10.84933696]
[1771744321693,2.93140582,85.285,85.255,10.84933696]
[1771744321898,2.93140582,85.284,85.255,10.84933696]
[1771744322090,2.93140582,85.283,85.255,10.84933696]
[1771744322291,6.33707895,85.288,85.255,10.84933696]
[1771744322492,11.69107974,85.287,85.255,10.84933696]
[1771744322693,2.93140582,85.286,85.255,10.84933696]
[1771744322893,2.93140582,85.285,85.255,10.84933696]
[1771744323096,2.93140582,85.284,85.255,10.84933696]
[1771744323295,2.93140582,85.283,85.255,10.84933696]
[1771744323494,6.33707895,85.288,85.255,10.84933696]
[1771744323696,11.69086557,85.287,85.255,10.84933696]
[1771744323897,2.93140582,85.286,85.255,10.84933696]
[1771744324098,2.93140582,85.285,85.255,10.84933696]
[1771744324398,2.93140582,85.284,85.255,10.84933696]
[1771744324599,2.93140582,85.283,85.255,10.84933696]
[1771744324799,6.33707895,85.288,85.255,10.84933696]
[1771744325001,11.69073152,85.287,85.255,10.84933696]
[1771744325192,2.93140599,85.286,85.255,10.84933696]
[1771744325495,2.93140599,85.285,85.255,10.84933696]
[1771744325696,2.93140599,85.284,85.255,10.84933696]
[1771744325896,2.93140599,85.283,85.255,10.84933696]
[1771744326101,6.33707895,85.288,85.255,10.84933696]
[1771744326297,11.69052671,85.287,85.255,10.84933696]
[1771744326499,11.69052671,85.286,85.255,10.84933696]
[1771744326801,2.93140599,85.285,85.255,10.84933696]
[1771744327000,2.93140599,85.284,85.255,10.84933696]
[1771744327201,2.93140599,85.283,85.255,10.84933696]
[1771744327404,6.33707895,85.288,85.255,10.84933696]
[1771744327702,11.69037899,85.287,85.255,10.84933696]
[1771744327900,11.69037899,85.286,85.255,10.84933696]
[1771744328098,2.93140599,85.285,85.255,10.84933696]
[1771744328299,2.93140599,85.284,85.255,10.84933696]
[1771744328501,2.93140599,85.283,85.255,10.84933696]
[1771744328705,6.33707895,85.288,85.255,10.84933696]
[1771744328902,11.69037938,85.287,85.255,10.84933696]
[1771744329203,11.69037938,85.286,85.255,10.84933696]
[1771744329404,2.93140599,85.285,85.255,10.84933696]
[1771744329703,2.93140599,85.284,85.255,10.84933696]
[1771744330003,2.93140599,85.283,85.255,10.84933696]
[1771744330206,6.33707895,85.288,85.255,10.84933696]
[1771744330405,11.70153545,85.287,85.255,10.84933696]
[1771744330703,11.70153545,85.286,85.255,10.84933696]
[1771744330904,2.93140599,85.285,85.255,10.84933696]
[1771744331107,2.93140599,85.284,85.255,10.84933696]
[1771744331404,2.93140599,85.283,85.255,10.84933696]
[1771744331598,6.33707895,85.288,85.255,10.84933696]
[1771744331795,11.7015714,85.287,85.255,10.84933696]
[1771744331997,11.7015714,85.286,85.255,10.84933696]
[1771744332205,2.93140599,85.285,85.255,10.84933696]
[1771744332397,2.93140599,85.284,85.255,10.84933696]
[1771744332601,2.93140599,85.283,85.255,10.84933696]
[1771744332802,6.33707895,85.288,85.255,10.84933696]
[1771744333001,11.70163698,85.287,85.255,10.84933696]
[1771744333202,11.70163698,85.286,85.255,10.84933696]
[1771744333405,2.93140582,85.285,85.255,10.84933696]
[1771744333605,2.93140582,85.284,85.255,10.84933696]
[1771744333906,2.93140582,85.283,85.255,10.84933696]
[1771744334105,6.33707895,85.288,85.255,10.84933696]
[1771744334305,11.70180779,85.287,85.255,10.84933696]
[1771744334507,11.70180779,85.286,85.255,10.84933696]
[1771744334807,2.93140582,85.285,85.255,10.84933696]
[1771744335105,2.93140582,85.284,85.255,10.84933696]
[1771744335304,6.33707895,85.288,85.255,10.84933696]
[1771744335305,2.93140582,85.283,85.255,10.84933696]
[1771744335505,6.33707895,85.288,85.255,10.84933696]
[1771744335706,11.70202691,85.287,85.255,10.84933696]
[1771744336004,11.70202691,85.286,85.255,10.84933696]
[1771744336198,2.93140582,85.285,85.255,10.84933696]
[1771744336396,2.93140582,85.284,85.255,10.84933696]
[1771744336596,2.93140582,85.283,85.255,10.84933696]
[1771744336805,2.93140582,85.282,85.255,10.84933696]
[1771744337104,6.33707895,85.288,85.255,10.84933696]
[1771744337302,11.70246203,85.287,85.255,10.84933696]
[1771744337504,11.70246203,85.286,85.255,10.84933696]
[1771744337810,2.93140633,85.285,85.255,10.84933696]
[1771744338102,2.93140633,85.284,85.255,10.84933696]
[1771744338306,2.93140633,85.283,85.255,10.84933696]
[1771744338606,2.93140633,85.282,85.255,10.84933696]
[1771744338799,6.33707895,85.288,85.255,10.84933696]
[1771744339001,11.70280985,85.287,85.255,10.84933696]
[1771744339201,11.70280985,85.286,85.255,10.84933696]
[1771744339404,11.70280985,85.285,85.255,10.84933696]
[1771744339606,2.93140633,85.284,85.255,10.84933696]
[1771744339804,2.93140633,85.283,85.255,10.84933696]
[1771744340003,2.93140633,85.282,85.255,10.84933696]
[1771744340208,6.33707895,85.288,85.255,10.84933696]
[1771744340409,11.70347236,85.287,85.255,10.84933696]
[1771744340608,11.70347236,85.286,85.255,10.84933696]
[1771744340909,11.70347236,85.285,85.255,10.84933696]
[1771744341109,2.93140633,85.284,85.255,10.84933696]
[1771744341309,2.93140633,85.283,85.255,10.84933696]
[1771744341510,2.93140633,85.282,85.255,10.84933696]
[1771744341710,6.33707895,85.288,85.255,10.84933696]
[1771744341911,11.70377002,85.287,85.255,10.84933696]
[1771744342111,11.70377002,85.286,85.255,10.84933696]
[1771744342412,11.70377002,85.285,85.255,10.84933696]
[1771744342712,2.93140633,85.284,85.255,10.84933696]
[1771744342911,2.93140633,85.283,85.255,10.84933696]
[1771744343208,2.93140633,85.282,85.255,10.84933696]
[1771744343414,6.33707895,85.288,85.255,10.84933696]
[1771744343612,11.70459092,85.287,85.255,10.84933696]
[1771744343810,11.70459092,85.286,85.255,10.84933696]
[1771744344012,2.46430099,85.28,85.255,10.84933696]
[1771744345317,6.83759247,85.286,85.255,10.84933696]
[1771744345516,11.70549959,85.285,85.255,10.84933696]
[1771744345717,11.70549959,85.284,85.255,10.84933696]
[1771744345913,2.9314065,85.283,85.255,10.84933696]
[1771744346110,2.9314065,85.282,85.255,10.84933696]
[1771744346415,6.83759247,85.286,85.255,10.84933696]
[1771744346416,2.9314065,85.281,85.255,10.84933696]
[1771744346612,6.83759247,85.286,85.255,10.84933696]
[1771744346812,11.70604041,85.285,85.255,10.84933696]
[1771744347011,11.70604041,85.284,85.255,10.84933696]
[1771744347213,2.93140649,85.283,85.255,10.84933696]
[1771744347515,2.93140649,85.282,85.255,10.84933696]
[1771744347716,2.93140649,85.281,85.255,10.84933696]
[1771744348020,6.83759247,85.286,85.255,10.84933696]
[1771744348221,11.70665281,85.285,85.255,10.84933696]
[1771744348421,6.83759247,85.286,85.255,10.84933696]
[1771744348422,11.70665281,85.284,85.255,10.84933696]
[1771744348617,2.93140649,85.283,85.255,10.84933696]
[1771744348817,2.93140649,85.282,85.255,10.84933696]
[1771744349110,2.93140649,85.281,85.255,10.84933696]
[1771744349315,6.83759247,85.286,85.255,10.84933696]
[1771744349516,11.70816533,85.285,85.255,10.84933696]
[1771744349818,11.70816533,85.284,85.255,10.84933696]
[1771744350017,11.70816533,85.283,85.255,10.84933696]
[1771744350316,2.93140649,85.282,85.255,10.84933696]
[1771744350514,2.93140649,85.281,85.255,10.84933696]
[1771744350714,2.93140649,85.28,85.255,10.84933696]
[1771744350911,6.83759247,85.286,85.255,10.84933696]
[1771744351121,11.70913294,85.285,85.255,10.84933696]
[1771744351321,11.70913294,85.284,85.255,10.84933696]
[1771744351623,11.70913294,85.283,85.255,10.84933696]
[1771744351822,11.70913294,85.282,85.255,10.84933696]
[1771744352021,2.93140649,85.281,85.255,10.84933696]
[1771744352222,2.93140649,85.28,85.255,10.84933696]
[1771744352425,2.93140649,85.279,85.255,10.84933696]
[1771744352621,6.83759247,85.286,85.255,10.84933696]
[1771744352821,11.71203119,85.285,85.255,10.84933696]
[1771744353023,11.71203119,85.284,85.255,10.84933696]
[1771744353225,11.71203119,85.283,85.255,10.84933696]
[1771744353427,11.71203119,85.282,85.255,10.84933696]
[1771744353623,2.93140649,85.281,85.255,10.84933696]
[1771744353824,2.93140649,85.28,85.255,10.84933696]
[1771744354025,2.93140649,85.279,85.255,10.84933696]
[1771744354224,6.83759247,85.286,85.255,10.84933696]
[1771744354428,11.71286816,85.285,85.255,10.84933696]
[1771744354621,11.71286816,85.284,85.255,10.84933696]
[1771744354822,11.71286816,85.283,85.255,10.84933696]
[1771744355023,11.71286816,85.282,85.255,10.84933696]
[1771744355221,11.71286816,85.281,85.255,10.84933696]
[1771744355422,2.93140649,85.28,85.255,10.84933696]
[1771744355621,2.93140649,85.279,85.255,10.84933696]
[1771744355917,2.93140649,85.278,85.255,10.84933696]
[1771744356118,6.83759247,85.286,85.255,10.84933696]
[1771744356323,11.71347644,85.285,85.255,10.84933696]
[1771744356523,11.71347644,85.284,85.255,10.84933696]
[1771744356726,11.71347644,85.283,85.255,10.84933696]
[1771744356928,11.71347644,85.282,85.255,10.84933696]
[1771744357226,11.71347644,85.281,85.255,10.84933696]
[1771744357527,2.93140649,85.28,85.255,10.84933696]
[1771744357722,2.93140649,85.279,85.255,10.84933696]
[1771744357923,2.93140649,85.278,85.255,10.84933696]
[1771744358130,6.83759247,85.286,85.255,10.84933696]
[1771744358427,11.71406379,85.285,85.255,10.84933696]
[1771744358622,11.71406379,85.284,85.255,10.84933696]
[1771744358926,11.71406379,85.283,85.255,10.84933696]
[1771744359229,11.71406379,85.282,85.255,10.84933696]
[1771744359429,11.71406379,85.281,85.255,10.84933696]
[1771744359727,2.93140649,85.28,85.255,10.84933696]
[1771744359928,2.93140649,85.279,85.255,10.84933696]
[1771744360128,2.93140649,85.278,85.255,10.84933696]
[1771744360425,2.93140649,85.277,85.255,10.84933696]
[1771744360628,6.83759247,85.286,85.255,10.84933696]
[1771744360831,11.71748325,85.285,85.255,10.84933696]
[1771744361129,11.71748325,85.284,85.255,10.84933696]
[1771744361327,11.71748325,85.283,85.255,10.84933696]
[1771744361528,11.71748325,85.282,85.255,10.84933696]
[1771744361730,6.83759247,85.286,85.255,10.84933696]
[1771744361731,11.71748325,85.281,85.255,10.84933696]
[1771744361924,11.71748325,85.28,85.255,10.84933696]
[1771744362128,2.93140649,85.279,85.255,10.84933696]
[1771744362328,2.93140649,85.278,85.255,10.84933696]
[1771744362530,2.93140649,85.277,85.255,10.84933696]
[1771744362733,6.83759247,85.286,85.255,10.84933696]
[1771744363031,11.71747879,85.285,85.255,10.84933696]
[1771744363232,11.71747879,85.284,85.255,10.84933696]
[1771744363428,11.71747879,85.283,85.255,10.84933696]
[1771744363635,7.04976967,85.305,85.258,11.30905041]
[1771744363935,8.78580523,85.304,85.258,11.30905041]
[1771744364126,8.78580523,85.303,85.258,11.30905041]
[1771744364433,8.78580523,85.302,85.258,11.30905041]
[1771744364632,8.78580523,85.301,85.258,11.30905041]
[1771744364833,8.78580523,85.3,85.26,11.30905041]
[1771744365028,8.78580523,85.299,85.26,11.30905041]
[1771744365230,8.78580523,85.298,85.26,11.30905041]
[1771744365428,7.04976967,85.305,85.26,11.30905041]
[1771744365429,8.78580523,85.297,85.26,11.30905041]
[1771744365633,7.04976967,85.305,85.26,11.30905041]
[1771744365831,8.77682943,85.304,85.26,11.30905041]
[1771744366031,8.77682943,85.303,85.26,11.30905041]
[1771744366333,8.77682943,85.302,85.26,11.30905041]
[1771744366535,2.46474958,85.3,85.26,11.30905041]
[1771744366734,8.77682943,85.299,85.26,11.30905041]
[1771744367036,8.77682943,85.298,85.26,11.30905041]
[1771744367233,2.46474958,85.3,85.26,11.30905041]
[1771744367535,8.77338058,85.299,85.26,11.30905041]
[1771744367732,2.46474958,85.3,85.26,11.30905041]
[1771744367937,8.77338018,85.299,85.26,11.30905041]
[1771744368130,7.04976967,85.305,85.26,11.30905041]
[1771744368330,8.77211427,85.304,85.26,11.30905041]
[1771744368537,8.77211427,85.303,85.26,11.30905041]
[1771744368737,8.77211427,85.302,85.26,11.30905041]
[1771744368937,8.77211427,85.301,85.26,11.30905041]
[1771744369235,8.77211427,85.3,85.26,11.30905041]
[1771744369436,7.04976967,85.305,85.26,11.30905041]
[1771744369639,8.77102393,85.304,85.26,11.30905041]
[1771744369830,8.77102393,85.303,85.26,11.30905041]
[1771744370035,8.77102393,85.302,85.26,11.30905041]
[1771744370234,8.77102393,85.301,85.26,11.30905041]
[1771744370431,8.77102393,85.3,85.26,11.30905041]
[1771744370634,8.77102393,85.299,85.26,11.30905041]
[1771744370830,7.04976967,85.305,85.26,11.30905041]
[1771744371034,15.60079054,85.304,85.26,11.30905041]
[1771744371234,8.77018215,85.303,85.26,11.30905041]
[1771744371536,2.46474958,85.3,85.26,11.30905041]
[1771744375537,2.9310584,85.299,85.26,11.30905041]
[1771744375733,2.9310584,85.298,85.26,11.30905041]
[1771744376037,2.9310584,85.297,85.26,11.30905041]
[1771744376233,2.46474958,85.3,85.26,11.30905041]
[1771744376536,2.93105857,85.299,85.26,11.30905041]
[1771744376734,2.93105857,85.298,85.26,11.30905041]
[1771744376942,2.93105857,85.297,85.26,11.30905041]
[1771744377245,2.46474958,85.3,85.26,11.30905041]
[1771744377443,2.93105878,85.299,85.26,11.30905041]
[1771744377649,2.93105878,85.298,85.26,11.30905041]
[1771744377843,2.93105878,85.297,85.26,11.30905041]
[1771744378144,2.46474958,85.3,85.26,11.30905041]
[1771744378343,2.93105878,85.299,85.26,11.30905041]
[1771744378543,2.93105878,85.298,85.26,11.30905041]
[1771744378742,2.93105878,85.297,85.26,11.30905041]
[1771744378946,2.46474958,85.3,85.26,11.30905041]
[1771744379149,2.93105878,85.299,85.26,11.30905041]
[1771744379445,2.46474958,85.3,85.26,11.30905041]
[1771744389753,6.80410682,85.289,85.26,11.30905041]
[1771744389962,6.80410682,85.289,85.25,10.64977897]
[1771744428793,6.77250338,85.288,85.25,10.64977897]
[1771744433898,6.72919888,85.285,85.247,274.52011283]
[1771744434098,6.72919888,85.279,85.247,274.52011283]
[1771744435702,17.26529133,85.278,85.247,274.52011283]
[1771744436103,6.7230305,85.277,85.247,274.52011283]
[1771744438904,10.5573,85.275,85.247,274.52011283]
[1771744447207,10.5583,85.267,85.247,255.70591283]
[1771744447402,10.5583,85.267,85.247,211.48561283]
[1771744447598,10.5583,85.267,85.247,193.65121283]
[1771744447798,10.5583,85.267,85.247,157.98241283]
[1771744450011,10.5583,85.267,85.237,10.91009458]
[1771744451012,6.58203687,85.259,85.215,10.91009458]
[1771744452713,10.5602,85.251,85.215,10.91009458]
[1771744456115,10.5612,85.243,85.215,10.91009458]
[1771744458325,6.58203687,85.259,85.221,10.71700997]
[1771744459724,10.5612,85.243,85.221,10.71700997]
[1771744460320,10.60464354,85.279,85.231,10.71700997]
[1771744460524,8.7558629,85.278,85.231,10.71700997]
[1771744460825,8.7558629,85.277,85.231,10.71700997]
[1771744461022,8.7558629,85.276,85.231,10.71700997]